Cogmind - Beta 15 @@@ ROGUE MODE // 2025.08.26 @ 21:58:28 Player: shapeshifter Result: Destroyed by YI-UF0 with YI-UF0's Doublenader Performance ------------- Evolutions (0) 0 Regions Visited (2) 400 Robots Destroyed (14) 70 Value Destroyed (239) 239 Prototype IDs (0) 0 Alien Tech Used (0) 0 Bonus (0) 0 TOTAL SCORE: 709 Bonus ------- None Cogmind --------- Core Integrity 0/250 Matter 300/300 Energy 92/100 System Corruption 25% Temperature Cool (0) Movement Core (50) Location -10/Mines Parts ------- > --- POWER (1) -------- (None) > --- PROPULSION (2) --- (None) > --- UTILITY (2) ------ (None) > --- WEAPON (2) ------- (None) > --- INVENTORY (5) ---- High-capacity Battery (250) Large Matter Pod (77) Signal Interpreter Medium Laser Assault Rifle Peak State ------------ > --- POWER ------------ Ion Engine > --- PROPULSION ------- Light Treads Light Treads > --- UTILITY ---------- Small Storage Unit Seismic Detector > --- WEAPON ----------- Medium Laser Assault Rifle > --- INVENTORY -------- Light Ion Engine Wheel Compact Wheel High-capacity Battery Signal Interpreter Signal Interpreter Improved Terrain Scanner Medium Laser [Rating: 8] Favorites ----------- Power Ion Engine Engine Ion Engine Propulsion Light Treads Treads Light Treads Wheel Wheel Utility Seismic Detector Device Seismic Detector Storage Large Storage Unit Weapon Assault Rifle Energy Gun Medium Laser Ballistic Gun Assault Rifle Build | -11 -10 -10 ------- Run | Yrd Mat Min Slots Evolved . | . . . Power . | . . . Propulsion . | . . . Utility . | . . . Weapon . | . . . Parts Attached 15 | 7 2 6 Power 2 | 1 . 1 Engine 2 | 1 . 1 Core . | . . . Reactor . | . . . Propulsion 4 | 2 . 2 Treads 2 | 2 . . Leg . | . . . Wheel 2 | . . 2 Hover . | . . . Flight . | . . . Utility 3 | 2 1 . Device 1 | 1 . . Storage 2 | 1 1 . Processor . | . . . Hackware . | . . . Protection . | . . . Artifact . | . . . Weapon 6 | 2 1 3 Energy Gun 1 | 1 . . Energy Cannon . | . . . Ballistic Gun 5 | 1 1 3 Ballistic Cannon . | . . . Launcher . | . . . Special Weapon . | . . . Impact Weapon . | . . . Slashing Weapon . | . . . Piercing Weapon . | . . . Special Melee Weapon . | . . . Unidentified Prototypes . | . . . Parts Lost 10 | . . 10 Power 1 | . . 1 Propulsion 4 | . . 4 Utility 1 | . . 1 Weapon 4 | . . 4 Highest Loss Streak 6 | . . 6 To Critical Strikes . | . . . Average Backups 9 | 3 9 10 Power . | . 1 . Propulsion 1 | 1 2 1 Utility 4 | . 4 5 Weapon 1 | . 1 2 Tool/Special . | . . . Unused Backups 8 | . . 8 Power . | . . . Propulsion . | . . . Utility 6 | . . 6 Weapon 2 | . . 2 Tool/Special . | . . . Average Slot Usage (%) 94 | . 100 88 Engine 13 | . 14 13 Treads 20 | . 28 13 Wheel 4 | . . 9 Device 13 | . 14 13 Storage 14 | . 14 14 Ballistic Gun 24 | . 26 22 Peak Build Rating 8 | 7 8 8 Average Rating 7 | 4 7 7 On Entrance 5 | . 7 8 Naked Turns 1 | . . 1 Heaviest Build 30 | 15 30 30 Greatest Support 40 | 40 40 40 Greatest Overweight (x) 2 | . . 2 Average Overweight (x) . | . . 1 Largest Inventory Capacity 15 | 8 15 15 Average Capacity 13 | 7 12 14 Most Carried 12 | 6 11 12 Average Carried 9 | 3 9 10 Final Capacity 15 | 8 15 5 Final Carried 11 | 5 11 5 Class Distribution -------------------- 100% | Mutant Dominant Class ---------------- Mutant | -10/Materials Mutant | -10/Mines Resources | -11 -10 -10 ----------- Run | Yrd Mat Min Matter Collected 685 | 260 161 264 Remotely . | . . . Salvage Created 384 | 42 198 144 Parts 33 | 5 16 12 Haulers Intercepted 1 | . 1 . Recyclers Shooed . | . . . Parts Field Recycled . | . . . Retrieved Matter . | . . . Parts Self-Destructed . | . . . Prevented . | . . . Kills | -11 -10 -10 ------- Run | Yrd Mat Min Combat Hostiles Destroyed 10 | . 5 5 Guns 10 | . 5 5 Classes Destroyed 5 | 1 4 . Worker 1 | . 1 . Tunneler 2 | 2 . . Hauler 1 | . 1 . Swarmer 6 | . 3 3 Grunt 4 | . 2 2 Best Kill Streak 3 | 1 3 3 Combat Bots Only 3 | . 3 3 Max Kills in Single Turn 2 | 1 2 1 Gunslinging . | . . . Exploded . | . . . Melee . | . . . Uniques/NPCs Destroyed . | . . . Combat | -11 -10 -10 -------- Run | Yrd Mat Min Hostile Shots Fired 67 | . 28 39 Missed 19 | . 5 14 Hits 48 | . 23 25 Projectile 48 | . 23 25 AOE 16 | . . 16 Damage Taken 1505 | . 270 1235 Core 264 | . 18 246 Absorbed by Shields . | . . . Core Remaining (%) 100 | 100 . . Volleys Fired 46 | 2 29 15 Largest 2 | 2 2 2 Hottest 70 | 70 40 40 Shots Fired 92 | 4 58 30 Gun 92 | 4 58 30 Cannon . | . . . Launcher . | . . . Special . | . . . Kinetic 90 | 2 58 30 Thermal 2 | 2 . . Explosive . | . . . Electromagnetic . | . . . Robot Hit Streak 8 | 2 5 8 Robot Miss Streak 5 | 1 5 2 Penetration Max . | . . . Secondary Targets 1 | . . 1 Max Gunslinging Chain 1 | . . 1 Shots Hit Robots 52 | 3 28 21 Core Hits 22 | 2 12 8 Critical Kills . | . . . Critical Parts Destroyed . | . . . Critical Strikes . | . . . Melee Attacks . | . . . Impact . | . . . Slashing . | . . . Piercing . | . . . Sneak Attacks . | . . . Combat Hostiles . | . . . Follow-up Attacks . | . . . Damage Inflicted 683 | 41 369 273 Guns 683 | 41 369 273 Cannons . | . . . Explosions . | . . . Melee . | . . . Ramming . | . . . Kinetic 670 | 28 369 273 Thermal 13 | 13 . . Explosive . | . . . Electromagnetic . | . . . Impact . | . . . Slashing . | . . . Piercing . | . . . Highest Corruption 25 | . . 25 Average Corruption 5 | . . 5 Corruption Purged . | . . . Corruption Blocked . | . . . Effects 8 | . . 8 Message Errors 2 | . . 2 Matter Fused 3 | . . 3 Heat Flow Errors 1 | . . 1 Energy Discharges 2 | . . 2 Overload Shots . | . . . Overflow Damage . | . . . Projectiles . | . . . Explosions . | . . . Melee . | . . . Knockbacks . | . . . Impact . | . . . Kinetic . | . . . Secondary . | . . . Self-Inflicted Damage . | . . . Shots . | . . . Rammed . | . . . Targets Rammed . | . . . Kicked . | . . . Crushed . | . . . Highest Temperature 87 | 9 2 87 Average Temperature 12 | 6 2 20 Received Heat Transfer 156 | . 81 75 Siege Activations . | . . . Martial Activations . | . . . Shielding Activations . | . . . Robots Disrupted . | . . . Combat Hostiles . | . . . Robots Corrupted . | . . . Combat Hostiles . | . . . Parts Fried . | . . . Impact Corruptions . | . . . Robots Melted . | . . . Combat Hostiles . | . . . Parts Melted . | . . . Heat Transferred 37 | 37 . . Parts Sabotaged . | . . . Parts Stolen . | . . . Parts Stripped . | . . . Power Chain Reactions . | . . . Alert | -11 -10 -10 ------- Run | Yrd Mat Min Maximum Alert Level . | . . . Low Security (%) 100 | 100 100 100 Level 1 . | . . . Level 2 . | . . . Level 3 . | . . . Level 4 . | . . . Level 5 . | . . . High Security . | . . . Max Security . | . . . Peak Influence 80 | 5 65 80 Initial 1 | . . 1 Average 9 | . 11 10 Influence Increases 274 | 10 144 120 Destroy 0b10 Robot/C 200 | . 100 100 Destroy 0b10 Robot/NC 20 | 10 10 . Destroy Leader 42 | . 22 20 Successful Hack 12 | . 12 . Influence Decreases 274 | 10 138 126 Entered New Map 5 | . . 5 Time Decay 229 | 10 138 81 Lost Part 40 | . . 40 Squads Dispatched . | . . . Investigation . | . . . Extermination . | . . . Reinforcement . | . . . Assault . | . . . Garrison . | . . . Intercept . | . . . Searches Triggered . | . . . Construction Impeded . | . . . Haulers Reinforced . | . . . Active Scanning Responses . | . . . Cargo Convoy Interrupts . | . . . Stealth | -11 -10 -10 --------- Run | Yrd Mat Min Distress Signals 2 | . 2 . Communications Jammed . | . . . Distress Signals . | . . . Times Spotted 20 | . 13 7 Peak Tracking Total 5 | . 5 3 Tactical Retreats 2 | . 1 1 Traps | -11 -10 -10 ------- Run | Yrd Mat Min Traps Triggered . | . . . Indirectly . | . . . Trap Hack Attempts . | . . . Triggered . | . . . Disarmed . | . . . Reprogrammed . | . . . Reused . | . . . Traps Extracted . | . . . Installed . | . . . Triggered . | . . . Machines | -11 -10 -10 ---------- Run | Yrd Mat Min Machines Disabled . | . . . Max in Single Turn . | . . . Machines Repaired . | . . . Machines Dismantled . | . . . Machines Sabotaged . | . . . Overloaded Fab Kills . | . . . Hacking | -11 -10 -10 --------- Run | Yrd Mat Min Machines Accessed 3 | . 3 . Terminals 3 | . 3 . Fabricators . | . . . Repair Stations . | . . . Recycling Units . | . . . Scanalyzers . | . . . Garrison Access . | . . . Total Hacks 10 | . 10 . Successful 3 | . 3 . Failed 7 | . 7 . Catastrophic 2 | . 2 . Database Lockouts . | . . . Manual 10 | . 10 . Terminals 10 | . 10 . Fabricators . | . . . Repair Stations . | . . . Recycling Units . | . . . Scanalyzers . | . . . Garrison Access . | . . . Terminal Hacks 1 | . 1 . Branch Access Points 1 | . 1 . Fabricator Hacks . | . . . Repair Station Hacks . | . . . Recycling Unit Hacks . | . . . Scanalyzer . | . . . Garrison Access Hacks . | . . . Unauthorized Hacks 2 | . 2 . Terminals 2 | . 2 . Botnet 2 | . 2 . Fabricators . | . . . Repair Stations . | . . . Recycling Units . | . . . Scanalyzers . | . . . Garrison Access . | . . . Data Cores Recovered . | . . . Used . | . . . Hacking Detections 3 | . 3 . Full Trace Events 1 | . 1 . Feedback Events . | . . . Feedback Blocked . | . . . Robot Schematics Acquired . | . . . Robots Built . | . . . Authchips . | . . . Time . | . . . Total Robot Build Rating . | . . . Part Schematics Acquired . | . . . Parts Built . | . . . Authchips . | . . . Time . | . . . Total Part Build Rating . | . . . Parts Repaired . | . . . Time . | . . . Parts Recycled . | . . . Recycled Matter . | . . . Retrieved Matter . | . . . Retrieved Components . | . . . Parts Scanalyzed . | . . . Part Schematics Acquired . | . . . Parts Damaged . | . . . Bothacking | -11 -10 -10 ------------ Run | Yrd Mat Min Used RIF Installer . | . . . Robots Hacked . | . . . Non-combat . | . . . Combat . | . . . Robot Hacks Applied . | . . . Relay Couplers Released . | . . . Fabnet Peak Effective % . | . . . Robots Rewired . | . . . Allies Hacked . | . . . Hacks Repelled . | . . . Allies | -11 -10 -10 -------- Run | Yrd Mat Min Total Allies 3 | . . 3 Largest Group 3 | . . 3 Highest-Rated Group 40 | . . 40 Highest-Rated Ally 16 | . . 16 Total Orders . | . . . Ally Attacks 2 | . . 2 Total Damage 17 | . . 17 Kills . | . . . Allies Corrupted . | . . . Allies Melted . | . . . Intel | -11 -10 -10 ------- Run | Yrd Mat Min Active Infowar (turns) 1246 | 15 605 626 Seismic 1246 | 15 605 626 Robot Analysis Total . | . . . Derelict Logs Recovered 1 | . . 1 Drone Launches . | . . . Drone Recoveries . | . . . Exploration | -11 -10 -10 ------------- Run | Yrd Mat Min Turns Passed 1374 | 133 605 636 Spaces Moved 737 | 76 315 346 Core 14 | 11 . 3 Treads 484 | 65 315 104 Legs . | . . . Wheels 239 | . . 239 Hover . | . . . Flight . | . . . Fastest Speed 50 | 50 160 50 Average Speed 141 | 144 160 124 Slowest Speed 160 | 160 160 160 Overloaded Moves . | . . . Propulsion Burnouts . | . . . Robots Hopped . | . . . Potential Cave-ins 4 | . . 4 Cave-ins Triggered 3 | . . 3 Exploration Rate (%) 35 | 5 47 54 Regions Visited 2 Branch Regions 1 Pre-discovered Areas 1 | . . 1 Known Exits Taken 1 | . 1 . Unknown Exits Taken 1 | 1 . . Scrap Searched 1 | . . 1 Spaces Dug . | . . . Terrain Destroyed . | . . . Melee . | . . . Projectile . | . . . AOE . | . . . Terrain Rammed . | . . . Walls Destroyed . | . . . Machines Disabled . | . . . Actions | -11 -10 -10 --------- Run | Yrd Mat Min Total 976 | 96 359 521 Wait 153 | . 6 147 Move 733 | 75 314 344 Hop . | . . . Pick Up 21 | 12 6 3 Fast Attach 1 | . 1 . Attach 12 | 7 . 5 Detach . | . . . Swap 4 | . 1 3 Drop 4 | . 2 2 Fire 46 | 2 29 15 Melee . | . . . Ram . | . . . Kick . | . . . Crush . | . . . Escape Stasis 2 | . . 2 Rewire . | . . . Trap . | . . . Miscellaneous . | . . . Route ------- -11/Scrapyard -10/Materials (discovered 2 exits: *Min x2) -10/Mines (discovered 1 exit: [*Mat]) History --------- Turn | Location | Event 5 | -11/Scrapyard | Discovered new exit (range 15) 134 | -11/Scrapyard | Entered Materials 251 | -10/Materials | Identified exit to Mines 304 | -10/Materials | Build established: Mutant 634 | -10/Materials | Derelicts attacked the area 739 | -10/Materials | Entered Mines 812 | -10/Mines | Met a Derelict bent on vengeance 942 | -10/Mines | Core integrity fell below 50% 943 | -10/Mines | Crushed by falling debris 949 | -10/Mines | Core integrity fell below 20% 974 | -10/Mines | Lost 4 parts (1n3w) 997 | -10/Mines | Discovered new exit (range 8) 1279 | -10/Mines | Assisted by bots powering up and referring to "LRC-V3" 1353 | -10/Mines | Crushed by falling debris 1354 | -10/Mines | System corruption reached 10% 1365 | -10/Mines | Crushed by falling debris 1375 | -10/Mines | Destroyed by YI-UF0 with YI-UF0's Doublenader Last Messages --------------- 01353_ Lgt. Assault Rifle destroyed. 01353_ System corrupted by crushing effect (+4). 01355_ K-01 Serf collects debris. 01365_ The unstable cave ceiling collapses. 01365_ Crushed by falling debris. 01365_ Lgt. Treads destroyed. 01365_ System corrupted by crushing effect (+5). 01365_ Seismic Detector destroyed. 01365_ System corrupted by crushing effect (+3). 01367_ Dropped Lgt. Assault Rifle. 01368_ K-01 Serf collects debris. 01369_ The unstable cave ceiling collapses. 01369_ Trooper 1a destroyed. 01369_ Trooper 1b destroyed. 01369_ K-01 Serf destroyed. 01371_ The unstable cave ceiling collapses. 01371_ Mercenary 1a destroyed. 01373_ Lgt. Treads destroyed. 01374_ YI-UF0 mumbles something. 01374_ Dropped Lrg. Storage Unit. Map ----- +----------------------------------------------------+ | ??# #???????????????# ##??????????? | | ??############### #??????????###### ##?????????? | | ????????###?????# #?????????## #?????????? | | ???????## #????# #?????????# #?????????? | | ?????### #???# #?????????# ## ##????????? | | ?????# # ## ###???????## ##?## #????????? | | ?????# #????????###???## #????????? | | ????## ##### #?????????????## #????????? | | ????# % # ## #????????????## #????????? | | ????# # ## #???????????## ##????????? | | ?????# # ##???????????# ##?????????? | | ?????# ############## #??????????? | | ?????# ##??????????? | | ?????## ################ ##???????????? | | ??????# =% #??????????????####????????????? | | #?????# ! ##??????????????????????????????? | | ##?# # # ##???????????????????????????????? | | ##=*## ## #???????????????????????????????? | | =%[ * ##??????????????????????????????? | | # ![!#% #####??????????????????????????? | | # # # # #??????????????????????????? | | ### # * [ ###????????????????????????? | | ## # # % # #????????????????????????? | | ## ! #????????????????????????? | | # % !!*##### #?????????????????? | | # # # = ! @ #?????????????????? | | # # # $ #?????????????????? | | # ## ########?????????????????? | | # # ##????????????????????????? | | # ## ## ! ##?????????????????????????? | | # #?# ## =% ???????????????????????????? | | # #?# # ##???????????????????????????? | | # #?# ????????????????????????????? | | # ??#[ ## g ????????????????????????????? | | # ### #?? ?????????????????????????????? | | # #??? # ?????????????????????????????? | | # #???? ?????????????????????????????? | | # #####??????? ?????????????????????????????? | | # #????????????? #??????????????????????????????? | | # #?????????????????????????????????????????????? | | # #?????????????????????????????????????????????? | | # ##????????????????????????????????????????????? | | # ##???????????????????????????????????????????? | | # ##??????????????????????????????????????????? | | # #??????????????????????????????????????????? | | ## ###########????????????????????????????????? | | ?# ## """ #????????????????????????????????? | | ?## ### """ #????????????????????????????????? | | ??# ##?# """ #????????????????????????????????? | | ??# #??# #????????????????????????????????? | +----------------------------------------------------+ Best States ------------- Heat Dissipation 25 Energy Generation 10 Energy Capacity 250 Matter Stores 300 Matter Capacity 300 Sight Range 16 Terrain Scan Density 10 Evasion (%) 50 Recoil Reduction 2 Item Schematics ----------------- None Robot Schematics ------------------ None Fabricated ------------ Nothing Repaired ---------- Nothing Alien Tech Used ----------------- None Achievements -------------- None Challenges ------------ None Game ------ Seed VoltaicFlightLog Manual? 0 Play Time 00:07:53 Cumulative 207.8 hours Start 2025.08.26 @ 21:50:41 End 2025.08.26 @ 21:58:28 Sessions 1 Manual Loads 0 Difficulty Rogue Special Mode None Game No. 315 Rogue 315 Adventurer 0 Explorer 0 Win Type - Total 4 Types 3/0/1/0/0/0/0/0/0/0 Lore% 80 Gallery% 75 Achievement% 56 Wizard Run 0 Options --------- Layout 1 ASCII 0 Keyboard 0 Movement Mouse Keybinds 0 Fullscreen 1 Font 24/Smallcaps Map View 50x40 Zoom Use 0% Tactical HUD 1 Map Filters NONE Filters NONE Steam 1 RUN: aab0565a-461c-4356-98df-a53b11a36683